[Event "CZE-ch Open 2019"]
[Site "Ostrava"]
[Date "2019.05.05"]
[Round "9.26"]
[White "Horak, Jan"]
[Black "Obsivac, Josef"]
[Result "1/2-1/2"]
[ECO "B23"]
[WhiteElo "2158"]
[BlackElo "2285"]
[Annotator "RC"]
[PlyCount "92"]
[EventDate "2019.04.27"]
[EventType "swiss"]
[EventCountry "CZE"]
[SourceTitle "playchess.com"]
[Source "ChessBase"]
[SourceQuality "1"]
[TimeControl "40/5400+30:1800+30"]

1. e4 {[%emt 0:00:00]} c5 {[%emt 0:00:00]} 2. Nc3 {[%emt 0:00:00]} Nc6 {[%emt 0:00:00]} 3. f4 {[%emt 0:00:09]} e6 {[%emt 0:01:47]} 4. Nf3 {[%emt 0:00:57]} d5 {[%emt 0:00:59]} 5. d3 {[%emt 0:00:47]} d4 {[%emt 0:03:01]} 6. Nb1 {[%emt 0:00:47]} f5 {[%emt 0:05:25]} 7. exf5 {[%emt 0:07:59]} exf5 {[%emt 0:01:19]} 8. g3 {[%emt 0:00:36]} Nf6 {[%emt 0:01:41]} 9. Bg2 {[%emt 0:00:21]} Qe7+ {[%emt 0:01:43]} 10. Qe2 {[%emt 0:01:06]} Qxe2+ {[%emt 0:05:21]} 11. Kxe2 {[%emt 0:00:09]} Bd6 {[%emt 0:04:19]} 12. h3 {[%emt 0:02:28]} O-O {[%emt 0:03:50]} 13. Bd2 {[%emt 0:02:29]} Bd7 {[%emt 0:07:15]} 14. Na3 {[%emt 0:01:22]} Rfe8+ {[%emt 0:03:08]} 15. Kf2 {[%emt 0:00:09]} h6 {[%emt 0:15:46]} 16. Nc4 {[%emt 0:03:47]} Bc7 {[%emt 0:00:15]} 17. Rhe1 {[%emt 0:00:50]} Be6 {[%emt 0:13:16]} 18. Nfe5 {[%emt 0:04:22]} Bxe5 {[%emt 0:04:49]} 19. Nxe5 {[%emt 0:05:26]} Bd5 {[%emt 0:02:34]} 20. Nd7 {[%emt 0:02:47]} Bxg2 {[%emt 0:01:10]} 21. Nxf6+ {[%emt 0:00:07]} gxf6 {[%emt 0:00:06]} 22. Kxg2 {[%emt 0:00:04]} h5 {[%emt 0:01:13]} 23. Kf3 {[%emt 0:04:04]} Kf7 {[%emt 0:00:24]} 24. Rxe8 {[%emt 0:01:52]} Rxe8 {[%emt 0:00:02]} 25. Re1 {[%emt 0:00:11]} Rd8 {[%emt 0:00:26]} 26. a4 {[%emt 0:01:41]} b6 {[%emt 0:00:23]} 27. b3 {[%emt 0:00:30]} a6 {[%emt 0:02:05]} 28. Rg1 {[%emt 0:00:31]} Rh8 {[%emt 0:00:47]} 29. Re1 {[%emt 0:00:43]} Ra8 {[%emt 0:01:34]} 30. Ra1 {[%emt 0:00:18]} Re8 {[%emt 0:00:52]} 31. Rg1 {[%emt 0:00:17]} Rc8 {[%emt 0:03:04]} 32. Re1 {[%emt 0:00:43]} Ne7 {[%emt 0:01:31]} 33. Rg1 {[%emt 0:01:09]} Nd5 {[%emt 0:01:39]} 34. Re1 {[%emt 0:01:32]} Ra8 {[%emt 0:00:24]} 35. Kf2 {[%emt 0:02:04]} Rc8 {[%emt 0:03:17]} 36. Ra1 {[%emt 0:01:26]} Rc6 {[%emt 0:00:40]} 37. Re1 {[%emt 0:00:13]} Rc7 {[%emt 0:00:57]} 38. Rg1 {[%emt 0:00:37]} Ke6 {[%emt 0:00:58]} 39. Re1+ {[%emt 0:00:11]} Kf7 {[%emt 0:03:15]} 40. Rg1 {[%emt 0:00:09]} Rc6 {[%emt 0:02:09]} 41. Ra1 {[%emt 0:33:22]} Rc7 {[%emt 0:32:56]} 42. Rg1 {[%emt 0:04:15]} Ke7 {[%emt 0:00:00]} 43. Re1+ {[%emt 0:00:00]} Kd7 {[%emt 0:00:00]} 44. Kf3 {[%emt 0:00:00]} Rc8 {[%emt 0:00:00]} 45. Rg1 {[%emt 0:00:00]} Re8 {[%emt 0:00:00]} 46. Kf2 {[%emt 0:00:00]} Rc8 {[%emt 0:00:00]} 1/2-1/2

[Event "CZE-ch Open 2019"]
[Site "Ostrava"]
[Date "2019.05.05"]
[Round "9.27"]
[White "Vybiral, Zdenek"]
[Black "Jurek, Josef"]
[Result "1-0"]
[ECO "E29"]
[WhiteElo "2274"]
[BlackElo "2269"]
[Annotator "NA"]
[PlyCount "105"]
[EventDate "2019.04.27"]
[EventType "swiss"]
[EventCountry "CZE"]
[SourceTitle "playchess.com"]
[Source "ChessBase"]
[SourceQuality "1"]
[TimeControl "40/5400+30:1800+30"]

1. d4 {[%emt 0:00:00]} Nf6 {[%emt 0:00:00]} 2. c4 {[%emt 0:00:00]} e6 {[%emt 0:00:03]} 3. Nc3 {[%emt 0:00:00]} Bb4 {[%emt 0:00:25]} 4. e3 {[%emt 0:00:00]} O-O {[%emt 0:00:45]} 5. a3 {[%emt 0:00:00]} Bxc3+ {[%emt 0:00:41]} 6. bxc3 {[%emt 0:00:00]} c5 {[%emt 0:02:57]} 7. Bd3 {[%emt 0:00:07]} ({Of course not} 7. dxc5 Na6 $17) 7... Nc6 {[%emt 0:01:24]} 8. Ne2 {[%emt 0:00:09]} b6 {[%emt 0:02:36]} 9. O-O {[%emt 0:00:36]} Ba6 {[%emt 0:01:33]} 10. e4 {[%emt 0:00:06]} Ne8 {[%emt 0:01:25]} 11. f4 {[%emt 0:00:05]} f5 {[%emt 0:03:36]} 12. e5 {[%emt 0:00:15]} Na5 {[%emt 0:03:05]} 13. d5 {[%emt 0:00:20] E29: Nimzo-Indian: Sämisch: 5...0-0 6 e3 c5 7 Bd3 Nc6} Bxc4 {[%emt 0:07:31]} (13... d6 14. g4 fxg4 15. dxe6 Qe7 16. Ng3 Rd8 17. Qxg4 dxe5 18. fxe5 Rxf1+ 19. Bxf1 Qc7 20. Bg5 Rb8 {1-0 (30) Avalyan,A (2347)-Khegay,D (2504) Moscow 2019}) 14. Bxc4 {[%emt 0:00:11]} Nxc4 {[%emt 0:00:20]} 15. d6 {[%emt 0:00:09]} Qc8 {[%emt 0:08:26]} 16. Qd3 {[%emt 0:16:55]} Na5 {[%emt 0:02:45]} 17. Be3 {[%emt 0:07:37]} Qc6 {[%emt 0:02:04]} 18. c4 $146 {[%emt 0:02:53]} ({Predecessor:} 18. Rad1 Qa4 19. Bc1 g6 20. Kh1 Ng7 {1-0 (51) Iniyan,P (2048)-Visakh,N (2308) Thrissur 2014}) 18... Qa4 {[%emt 0:06:43]} 19. Rfc1 {[%emt 0:13:03]} g6 {[%emt 0:02:31]} 20. Rab1 {[%emt 0:00:08]} Ng7 {[%emt 0:04:38]} 21. Bd2 {[%emt 0:00:37]} Rab8 {[%emt 0:03:18]} 22. Qc2 {[%emt 0:10:11]} Qxc2 {[%emt 0:02:53]} 23. Rxc2 {[%emt 0:00:05]} Nc6 {[%emt 0:02:35]} 24. Bc3 {[%emt 0:00:19]} Rb7 {[%emt 0:02:50]} 25. Kf2 {[%emt 0:03:09]} g5 {[%emt 0:02:46]} 26. g3 {[%emt 0:00:34]} g4 {[%emt 0:02:31]} 27. Ke3 {[%emt 0:00:37]} Kf7 {[%emt 0:01:01]} 28. Rcb2 {[%emt 0:03:51]} Rfb8 {[%emt 0:02:03]} 29. Nc1 {[%emt 0:01:59]} Nd8 {[%emt 0:03:06]} 30. Nd3 {[%emt 0:00:51]} h5 {[%emt 0:02:02]} 31. a4 {[%emt 0:08:42]} a5 {[%emt 0:02:48]} 32. Rb5 {[%emt 0:00:16]} Ne8 {[%emt 0:01:59]} 33. Kd2 {[%emt 0:07:21]} Ng7 {[%emt 0:01:37]} 34. Kc2 {[%emt 0:00:06]} Ne8 {[%emt 0:01:37]} 35. Nxc5 {[%emt 0:03:11]} bxc5 {[%emt 0:00:36]} 36. Bxa5 {[%emt 0:00:05]} Rxb5 {[%emt 0:02:27]} 37. cxb5 {[%emt 0:00:11]} Nb7 {[%emt 0:01:43]} 38. Bc3 {[%emt 0:04:01]} Nexd6 {[%emt 0:09:15]} 39. exd6 {[%emt 0:02:11]} Ra8 {[%emt 0:00:10]} 40. a5 {[%emt 0:00:52]} Nxd6 {[%emt 0:01:32]} 41. b6 {[%emt 0:35:44]} Nb7 {[%emt 0:31:27]} 42. Ra1 {[%emt 0:00:19]} Ra6 {[%emt 0:00:57]} 43. Kb3 {[%emt 0:00:37]} d5 {[%emt 0:03:49]} 44. Ka4 {[%emt 0:00:12]} d4 {[%emt 0:02:36]} 45. Kb5 {[%emt 0:00:40]} Ra8 {[%emt 0:00:00]} 46. Bb2 {[%emt 0:00:00]} d3 $18 {[%emt 0:00:00]} 47. a6 {[%emt 0:00:00]} Nd6+ {[%emt 0:00:00]} 48. Kxc5 {[%emt 0:00:00]} d2 {[%emt 0:00:00]} 49. a7 {[%emt 0:00:00]} Ke7 {[%emt 0:00:00]} 50. Rd1 {[%emt 0:02:26]} Rc8+ {[%emt 0:00:00]} 51. Kb4 {[%emt 0:02:23]} Rc4+ {[%emt 0:00:00]} 52. Kb3 {[%emt 0:00:24]} Rc8 {[%emt 0:00:00]} 53. Ba3 {[%emt 0:00:39]} 1-0

[Event "CZE-ch Open 2019"]
[Site "Ostrava"]
[Date "2019.05.05"]
[Round "9.28"]
[White "Vorisek, Jakub"]
[Black "Havelka, Ondrej"]
[Result "1-0"]
[ECO "C11"]
[WhiteElo "1991"]
[BlackElo "2156"]
[Annotator "NA RC"]
[PlyCount "103"]
[EventDate "2019.04.27"]
[EventType "swiss"]
[EventCountry "CZE"]
[SourceTitle "playchess.com"]
[Source "ChessBase"]
[SourceQuality "1"]
[TimeControl "40/5400+30:1800+30"]

1. e4 {[%emt 0:00:00]} e6 {[%emt 0:00:00]} 2. d4 {[%emt 0:00:00]} d5 {[%emt 0:00:00]} 3. Nc3 {[%emt 0:00:14]} Nf6 {[%emt 0:00:00]} 4. e5 {[%emt 0:00:28]} Nfd7 {[%emt 0:00:00]} 5. Nce2 {[%emt 0:00:17]} c5 {[%emt 0:00:04]} 6. c3 {[%emt 0:00:14]} Nc6 {[%emt 0:00:09]} 7. Nf3 {[%emt 0:00:17]} f6 {[%emt 0:06:34]} 8. Nf4 {[%emt 0:02:55] C11: French: Classical System: 4 e5 and 4 Bg5 dxe4} Ndxe5 {[%emt 0:06:51]} 9. dxe5 $146 {[%emt 0:14:22]} ({Predecessor:} 9. Nxe5 fxe5 10. Qh5+ Kd7 11. dxe5 Qe8 12. Qh3 Kc7 13. Bb5 Bd7 14. O-O Rc8 15. Re1 a6 {1-0 (41) Belov,V (2614)-Ozen,D (2413) Izmir 2018}) 9... fxe5 {[%emt 0:00:13]} 10. Nxe5 {[%emt 0:05:12]} Nxe5 {[%emt 0:00:19]} 11. Qh5+ {[%emt 0:00:41]} Nf7 {[%emt 0:00:05]} 12. Bb5+ {[%emt 0:03:10]} Bd7 {[%emt 0:00:12]} 13. Nxe6 {[%emt 0:04:03]} Qe7 {[%emt 0:00:10]} 14. Qe2 {[%emt 0:00:08]} c4 {[%emt 0:15:00]} 15. Nc7+ {[%emt 0:15:54]} Kd8 {[%emt 0:00:01]} 16. Qxe7+ {[%emt 0:04:57]} Bxe7 {[%emt 0:00:01]} 17. Bxd7 {[%emt 0:00:10]} ({Of course not} 17. Nxa8 Bxb5 18. Bf4 Bd6 $15) 17... Kxc7 {[%emt 0:00:02]} 18. Be6 {[%emt 0:00:33]} Ne5 {[%emt 0:00:01]} 19. Bxd5 {[%emt 0:00:56]} Nd3+ {[%emt 0:02:56]} 20. Ke2 {[%emt 0:04:08]} b5 {[%emt 0:13:10]} 21. Bxa8 {[%emt 0:02:42]} Rxa8 $18 {[%emt 0:01:26]} 22. Rd1 {[%emt 0:01:21]} Rf8 {[%emt 0:07:54]} 23. f3 {[%emt 0:06:07]} Bd6 {[%emt 0:03:03]} 24. Rxd3 {[%emt 0:03:41]} cxd3+ {[%emt 0:00:04]} 25. Kxd3 {[%emt 0:00:04]} Bxh2 {[%emt 0:00:05]} 26. Be3 {[%emt 0:00:03]} Rd8+ {[%emt 0:00:47]} 27. Bd4 {[%emt 0:00:04]} h6 {[%emt 0:01:13]} 28. Re1 {[%emt 0:00:20]} Rd7 {[%emt 0:00:40]} 29. Re6 {[%emt 0:00:31]} Bd6 {[%emt 0:02:05]} 30. Ke4 {[%emt 0:00:40]} a5 {[%emt 0:01:06]} 31. Rg6 {[%emt 0:05:29]} Bf8 {[%emt 0:01:09]} 32. Ra6 {[%emt 0:01:21]} a4 {[%emt 0:01:47]} 33. Ra7+ {[%emt 0:00:15]} Kc6 {[%emt 0:00:05]} 34. Rxd7 {[%emt 0:00:06]} Kxd7 {[%emt 0:00:03]} 35. Kd5 {[%emt 0:00:03]} g6 {[%emt 0:01:32]} 36. Bc5 {[%emt 0:00:16]} Bg7 {[%emt 0:00:06]} 37. Bb4 {[%emt 0:00:07]} h5 {[%emt 0:00:42]} 38. Kc5 {[%emt 0:00:13]} Ke6 {[%emt 0:00:10]} 39. Kxb5 {[%emt 0:00:20]} Kf5 {[%emt 0:00:03]} 40. Kxa4 {[%emt 0:01:24]} Kf4 {[%emt 0:00:04]} 41. Bd6+ {[%emt 0:31:05]} Ke3 {[%emt 0:30:40]} 42. c4 {[%emt 0:04:00]} Bxb2 {[%emt 0:00:01]} 43. c5 {[%emt 0:00:05]} Bd4 {[%emt 0:00:03]} 44. c6 {[%emt 0:00:08]} Bb6 {[%emt 0:00:01]} 45. Kb5 {[%emt 0:00:07]} Bd8 {[%emt 0:00:01]} 46. a4 {[%emt 0:00:19]} Kf2 {[%emt 0:00:04]} 47. a5 {[%emt 0:00:19]} Kxg2 {[%emt 0:00:25]} 48. c7 {[%emt 0:00:45]} Bxc7 {[%emt 0:00:04]} 49. Bxc7 {[%emt 0:00:04]} Kxf3 {[%emt 0:00:08]} 50. a6 {[%emt 0:00:04]} g5 {[%emt 0:00:09]} 51. a7 {[%emt 0:00:04]} g4 {[%emt 0:00:04]} 52. a8=Q+ {[%emt 0:00:04]} 1-0

[Event "CZE-ch Open 2019"]
[Site "Ostrava"]
[Date "2019.05.05"]
[Round "9.29"]
[White "Neumann, Filip"]
[Black "Kolar, Stanislav"]
[Result "1/2-1/2"]
[ECO "B01"]
[WhiteElo "2076"]
[BlackElo "2091"]
[Annotator "NA"]
[PlyCount "233"]
[EventDate "2019.04.27"]
[EventType "swiss"]
[EventCountry "CZE"]
[SourceTitle "playchess.com"]
[Source "ChessBase"]
[SourceQuality "1"]
[TimeControl "40/5400+30:1800+30"]

1. e4 {[%emt 0:00:00]} d5 {[%emt 0:00:00]} 2. exd5 {[%emt 0:00:00]} Qxd5 {[%emt 0:00:00]} 3. Nc3 {[%emt 0:00:00]} Qd6 {[%emt 0:00:06]} 4. d4 {[%emt 0:00:04]} Nf6 {[%emt 0:01:01]} 5. Nf3 {[%emt 0:00:11]} Nc6 {[%emt 0:01:52]} (5... Bg4 6. h3 Bh5 7. g4 Bg6 8. Ne5 Nbd7 9. Bf4 Nxe5 10. Bxe5 Qb6 11. Qf3 O-O-O 12. O-O-O e6 13. Bd3 Bb4 14. Bxg6 hxg6 {½-½ (55) Caruana,F (2828)-Moranda,W (2593) chess.com INT 2019}) 6. h3 {[%emt 0:04:42] B01: Scandinavian Defence} a6 {[%emt 0:00:08]} 7. g3 {[%emt 0:02:53]} e5 {[%emt 0:02:24]} 8. dxe5 {[%emt 0:02:11]} Qxd1+ $146 {[%emt 0:01:48]} ({Predecessor:} 8... Qe6 9. Qe2 Nd7 10. Bf4 h6 11. h4 Nb6 12. Bg2 Bb4 {1-0 (36) Vovk,A (2504)-Aepfler,C (2282) Pardubice 2007}) 9. Nxd1 {[%emt 0:01:24]} Nd7 {[%emt 0:01:05]} 10. Bf4 {[%emt 0:00:54]} Nc5 {[%emt 0:00:34]} 11. Nc3 {[%emt 0:03:41]} Be6 {[%emt 0:01:07]} 12. O-O-O {[%emt 0:01:06]} h6 {[%emt 0:01:07]} 13. Bg2 {[%emt 0:02:16]} g5 {[%emt 0:01:19]} 14. Be3 {[%emt 0:00:25]} Nd7 {[%emt 0:00:40]} 15. Nd4 {[%emt 0:01:54]} Nxd4 {[%emt 0:06:46]} 16. Bxd4 {[%emt 0:00:42]} O-O-O {[%emt 0:00:45]} 17. f4 {[%emt 0:03:36]} Rg8 {[%emt 0:00:09]} 18. Be4 {[%emt 0:01:31]} Nc5 {[%emt 0:05:21]} 19. Bxc5 {[%emt 0:01:26]} Bxc5 {[%emt 0:00:02]} 20. f5 {[%emt 0:04:27]} Bc4 {[%emt 0:01:38]} 21. b3 {[%emt 0:03:37]} Bb5 {[%emt 0:04:20]} 22. Nxb5 {[%emt 0:01:05]} axb5 {[%emt 0:00:02]} 23. g4 {[%emt 0:03:14]} Be3+ {[%emt 0:02:19]} 24. Kb1 {[%emt 0:00:22]} c6 {[%emt 0:03:19]} 25. e6 {[%emt 0:02:38]} fxe6 {[%emt 0:00:45]} 26. fxe6 {[%emt 0:00:05]} Kc7 {[%emt 0:03:19]} 27. Bf5 {[%emt 0:00:47]} Rge8 {[%emt 0:02:39]} 28. c3 {[%emt 0:01:29]} Rxd1+ {[%emt 0:02:41]} 29. Rxd1 {[%emt 0:00:34]} Re7 {[%emt 0:01:13]} 30. Kc2 {[%emt 0:00:16]} Bc5 {[%emt 0:01:44]} 31. Kd3 {[%emt 0:00:32]} Bd6 {[%emt 0:00:20]} 32. Ke4 {[%emt 0:00:09]} Re8 {[%emt 0:00:42]} 33. Kf3 {[%emt 0:01:09]} Re7 {[%emt 0:01:05]} 34. Re1 {[%emt 0:00:15]} Rg7 {[%emt 0:01:19]} 35. Rd1 {[%emt 0:01:57]} Rg8 {[%emt 0:01:40]} 36. Kf2 {[%emt 0:01:42]} Rd8 {[%emt 0:00:39]} 37. Kg2 {[%emt 0:01:44]} Re8 {[%emt 0:01:26]} 38. h4 {[%emt 0:00:44]} Rg8 {[%emt 0:02:32]} 39. h5 {[%emt 0:00:09]} Re8 {[%emt 0:00:35]} 40. Re1 {[%emt 0:00:14]} Kd8 {[%emt 0:02:34]} 41. Bg6 {[%emt 0:30:36]} Rf8 {[%emt 0:30:39]} 42. Bf7 {[%emt 0:00:53]} Ke7 {[%emt 0:01:02]} 43. Rd1 {[%emt 0:00:33]} Ra8 {[%emt 0:00:26]} 44. Rd2 {[%emt 0:00:13]} Rd8 {[%emt 0:00:23]} 45. Kf3 {[%emt 0:00:44]} Bc7 {[%emt 0:11:19]} 46. Re2 {[%emt 0:01:59]} Bf4 {[%emt 0:03:59]} 47. Ke4 {[%emt 0:01:11]} Rd5 {[%emt 0:01:12]} 48. c4 {[%emt 0:02:01]} bxc4 {[%emt 0:00:45]} 49. bxc4 {[%emt 0:00:13]} Re5+ {[%emt 0:01:07]} 50. Kd3 {[%emt 0:00:09]} Ra5 {[%emt 0:05:32]} 51. Rb2 {[%emt 0:01:46]} b5 {[%emt 0:00:12]} 52. cxb5 {[%emt 0:00:27]} cxb5 {[%emt 0:00:11]} 53. Ke4 {[%emt 0:00:31]} Kf6 {[%emt 0:02:32]} 54. Kd5 {[%emt 0:00:48]} b4+ {[%emt 0:01:54]} 55. Kc6 {[%emt 0:00:20]} Ra6+ {[%emt 0:03:35]} 56. Kb7 {[%emt 0:01:34]} Ra3 {[%emt 0:01:33]} 57. Rxb4 {[%emt 0:02:11]} Rxa2 {[%emt 0:00:36]} 58. Rd4 {[%emt 0:00:05]} Be3 {[%emt 0:04:38]} 59. Rc4 {[%emt 0:02:24]} Bf4 {[%emt 0:03:23]} 60. Rc8 {[%emt 0:02:56]} Bd6 {[%emt 0:04:57]} 61. Rg8 {[%emt 0:01:19]} Ra4 {[%emt 0:02:40]} 62. Kc6 {[%emt 0:00:47]} Ba3 {[%emt 0:01:04]} 63. Rg6+ {[%emt 0:01:09]} Ke7 {[%emt 0:00:26]} 64. Rxh6 {[%emt 0:00:44]} Rxg4 {[%emt 0:00:14]} 65. Rg6 {[%emt 0:00:12]} Bb2 {[%emt 0:03:16]} 66. Rg8 {[%emt 0:00:25]} Rg1 {[%emt 0:01:42]} 67. Re8+ {[%emt 0:01:13]} Kf6 {[%emt 0:00:06]} 68. Bg6 {[%emt 0:00:47]} Rh1 {[%emt 0:00:00]} 69. Kd5 {[%emt 0:00:00]} Rd1+ {[%emt 0:00:00]} 70. Kc4 {[%emt 0:00:00]} Rh1 {[%emt 0:00:00]} 71. Kd3 {[%emt 0:00:00]} Ba3 {[%emt 0:00:00]} 72. Ke2 {[%emt 0:00:00]} Bd6 {[%emt 0:00:00]} 73. Kf3 {[%emt 0:00:00]} Rh3+ {[%emt 0:00:00]} 74. Kg2 {[%emt 0:00:00]} g4 {[%emt 0:00:00]} 75. Bf7 {[%emt 0:00:00]} Rh2+ {[%emt 0:00:00]} 76. Kg1 {[%emt 0:00:00]} g3 $11 {[%emt 0:00:00]} 77. Rg8 {[%emt 0:00:00]} Bc5+ {[%emt 0:00:00]} 78. Kf1 {[%emt 0:00:00]} Rf2+ {[%emt 0:00:00]} 79. Kg1 {[%emt 0:00:00]} Ke7 {[%emt 0:00:00]} 80. Rxg3 {[%emt 0:00:00]} Rxf7+ {[%emt 0:00:00]} 81. Kg2 {[%emt 0:00:00]} Kxe6 {[%emt 0:00:00]} 82. Kh3 {[%emt 0:00:00]} Rf4 {[%emt 0:00:00]} 83. Rg5 {[%emt 0:00:00]} Be7 {[%emt 0:00:00]} 84. Rb5 {[%emt 0:00:00]} Bf6 {[%emt 0:00:06]} 85. Ra5 {[%emt 0:00:00]} Be5 {[%emt 0:00:23]} 86. h6 {[%emt 0:00:00]} Rf6 {[%emt 0:01:36]} 87. Kg4 {[%emt 0:00:00]} Rxh6 {[%emt 0:00:03]} 88. Ra6+ {[%emt 0:00:00]} Bd6 {[%emt 0:00:08]} 89. Ra5 {[%emt 0:00:00]} Rf6 {[%emt 0:00:42]} 90. Rb5 {[%emt 0:00:00]} Rf4+ {[%emt 0:01:21]} 91. Kg5 {[%emt 0:00:00]} Rf3 {[%emt 0:01:15]} 92. Kg6 {[%emt 0:00:00]} Rf6+ {[%emt 0:02:23]} 93. Kg5 {[%emt 0:00:00]} Rf8 {[%emt 0:00:25]} 94. Kg4 {[%emt 0:00:00]} Rg8+ {[%emt 0:01:14]} 95. Rg5 {[%emt 0:00:24]} Rb8 {[%emt 0:00:19]} 96. Ra5 {[%emt 0:00:32]} Rb3 {[%emt 0:00:15]} 97. Rg5 {[%emt 0:03:47]} Be5 {[%emt 0:00:48]} 98. Rg6+ {[%emt 0:01:06]} Bf6 {[%emt 0:01:16]} 99. Kf4 {[%emt 0:01:58]} Rb4+ {[%emt 0:00:23]} 100. Ke3 {[%emt 0:00:52]} Ke5 {[%emt 0:00:10]} 101. Kd3 {[%emt 0:00:35]} Rd4+ {[%emt 0:00:46]} 102. Kc3 {[%emt 0:01:59]} Rd6 {[%emt 0:00:09]} 103. Kc4 {[%emt 0:00:19]} Rc6+ {[%emt 0:00:39]} 104. Kd3 {[%emt 0:01:32]} Kd5 {[%emt 0:00:07]} 105. Rg4 {[%emt 0:02:00]} Rc3+ {[%emt 0:00:37]} 106. Kd2 {[%emt 0:00:42]} Bd4 {[%emt 0:00:04]} 107. Rg8 {[%emt 0:01:54]} Rf3 {[%emt 0:00:53]} 108. Re8 {[%emt 0:03:18]} Kc4 {[%emt 0:00:19]} 109. Re7 {[%emt 0:02:48]} Rf8 {[%emt 0:00:51]} 110. Re4 {[%emt 0:01:43]} Kd5 {[%emt 0:00:14]} 111. Re7 {[%emt 0:00:31]} Bc5 {[%emt 0:00:59]} 112. Rh7 {[%emt 0:01:37]} Kc4 {[%emt 0:00:26]} 113. Rh4+ {[%emt 0:00:38]} Bd4 {[%emt 0:00:17]} 114. Re4 {[%emt 0:00:15]} Rf2+ {[%emt 0:00:22]} 115. Re2 {[%emt 0:00:08]} Rf3 {[%emt 0:00:03]} 116. Re8 {[%emt 0:00:10]} Ra3 {[%emt 0:00:26]} 117. Ke2 {[%emt 0:00:16]} 1/2-1/2

[Event "CZE-ch Open 2019"]
[Site "Ostrava"]
[Date "2019.05.05"]
[Round "9.30"]
[White "Vanek, Tomas"]
[Black "Kana, Pavel"]
[Result "1/2-1/2"]
[ECO "B12"]
[WhiteElo "2095"]
[BlackElo "2013"]
[Annotator "NA RC"]
[PlyCount "60"]
[EventDate "2019.04.27"]
[EventType "swiss"]
[EventCountry "CZE"]
[SourceTitle "playchess.com"]
[Source "ChessBase"]
[SourceQuality "1"]
[TimeControl "40/5400+30:1800+30"]

1. e4 c6 2. d4 d5 3. e5 Bf5 4. h4 h5 5. c4 Bxb1 (5... e6 6. Nc3 Ne7 7. Nge2 Bg4 8. Bg5 Qb6 9. c5 Qc7 10. f3 Bf5 11. Ng3 f6 12. Bf4 Nd7 13. exf6 Qxf4 14. Nce2 Qh6 15. fxe7 Bxe7 16. Nxf5 exf5 {½-½ (27) Sutovsky,E (2647)-Artemiev,V (2704) Poikovsky 2018}) 6. Rxb1 {B12: Caro-Kann: Advance Variation} e6 7. Qb3 Qb6 8. Qxb6 $146 ({Predecessor:} 8. c5 Qxb3 9. axb3 Nd7 10. b4 a6 11. Bd3 g6 12. f4 Nh6 13. Be3 {½-½ (27) Bryzgalin,K (2480)-Pantsulaia,L (2510) playchess.com INT 2005}) 8... axb6 9. a3 dxc4 10. Bxc4 b5 11. Bb3 Ne7 12. Nf3 Nd7 13. O-O Nb6 14. Bd2 Ned5 15. Ng5 Be7 16. Ne4 O-O 17. Ng3 Bxh4 18. Nxh5 Nc4 19. Bxc4 bxc4 20. Rbc1 b5 21. g3 Be7 22. Kg2 g6 23. Nf4 $11 Nxf4+ 24. Bxf4 Kg7 25. Bd2 Rfd8 26. Bc3 Rh8 27. Rh1 Rxh1 28. Rxh1 Rh8 29. Rxh8 Kxh8 30. Kf3 Kg8 1/2-1/2

[Event "CZE-ch Open 2019"]
[Site "Ostrava"]
[Date "2019.05.05"]
[Round "9.31"]
[White "Didi, Jan"]
[Black "Valencik, Jozef"]
[Result "1/2-1/2"]
[ECO "C03"]
[WhiteElo "2025"]
[BlackElo "2057"]
[Annotator "NA"]
[PlyCount "122"]
[EventDate "2019.04.27"]
[EventType "swiss"]
[EventCountry "CZE"]
[SourceTitle "playchess.com"]
[Source "ChessBase"]
[SourceQuality "1"]
[TimeControl "40/5400+30:1800+30"]

1. e4 {[%emt 0:01:55]} e6 {[%emt 0:00:00]} 2. d4 {[%emt 0:00:17]} d5 {[%emt 0:00:00]} 3. Nd2 {[%emt 0:00:05]} Nc6 {[%emt 0:00:00]} 4. c3 {[%emt 0:00:42]} e5 {[%emt 0:00:13]} 5. exd5 {[%emt 0:05:59]} Qxd5 {[%emt 0:00:15]} 6. Ngf3 {[%emt 0:04:17]} Bg4 {[%emt 0:08:30] C04: French Tarrasch: 3...Nc6} (6... exd4 7. Bc4 Qh5 8. cxd4 Nf6 9. O-O Be7 10. Ne5 Qxd1 11. Rxd1 Nd8 12. d5 O-O 13. Bb3 a5 14. Ndc4 a4 15. Bc2 Re8 16. d6 Bxd6 17. Nxd6 cxd6 {½-½ (59) Lagarde,M (2540)-Bauer,C (2618) Saint-Quentin 2015}) 7. Qa4 {[%emt 0:11:43]} Bxf3 {[%emt 0:11:02]} 8. Bc4 $146 {[%emt 0:01:30]} ({Predecessor:} 8. Nxf3 Qe4+ 9. Be3 exd4 10. Bb5 O-O-O 11. Bxc6 Qxc6 12. Qxc6 bxc6 13. Nxd4 Kb7 14. O-O-O {1-0 (25) Trujillo Delgado,D (2118)-Palacios Llorente,J Madrid 2003}) 8... Qa5 {[%emt 0:02:55]} 9. Qb3 {[%emt 0:03:40]} O-O-O {[%emt 0:02:22]} 10. Nxf3 {[%emt 0:04:28]} exd4 {[%emt 0:15:43]} 11. O-O {[%emt 0:00:44]} Nf6 {[%emt 0:04:32]} 12. cxd4 {[%emt 0:03:44]} Nxd4 {[%emt 0:16:19]} 13. Nxd4 {[%emt 0:00:17]} Rxd4 {[%emt 0:00:08]} 14. Be3 {[%emt 0:00:33]} Rd8 {[%emt 0:00:29]} 15. Bxf7 {[%emt 0:01:35]} Bc5 {[%emt 0:01:52]} 16. Bxc5 {[%emt 0:11:15]} Qxc5 {[%emt 0:00:06]} 17. Rac1 {[%emt 0:00:31]} Qb6 {[%emt 0:03:09]} 18. Qg3 {[%emt 0:15:33]} g6 {[%emt 0:03:59]} 19. Rfe1 {[%emt 0:00:45]} Kb8 {[%emt 0:07:19]} 20. Re7 {[%emt 0:01:53]} Rd7 {[%emt 0:01:05]} 21. Qe5 {[%emt 0:07:18]} Rhd8 {[%emt 0:02:18]} 22. h3 {[%emt 0:02:35]} Rxe7 {[%emt 0:04:54]} 23. Qxe7 {[%emt 0:00:17]} Qd6 {[%emt 0:00:10]} 24. Re1 {[%emt 0:04:20]} Qxe7 {[%emt 0:01:25]} 25. Rxe7 {[%emt 0:00:11]} Rd7 {[%emt 0:00:41]} 26. Rxd7 {[%emt 0:00:29]} Nxd7 {[%emt 0:00:05]} 27. f4 {[%emt 0:00:58]} c5 {[%emt 0:01:07]} 28. Kf2 {[%emt 0:01:38]} Kc7 {[%emt 0:00:08]} 29. Kf3 {[%emt 0:00:32]} Nf6 {[%emt 0:02:27]} 30. g4 {[%emt 0:03:24]} Kd6 {[%emt 0:02:35]} 31. g5 {[%emt 0:03:06]} Nd7 {[%emt 0:00:36]} 32. Bg8 {[%emt 0:00:40]} Nf8 {[%emt 0:00:25]} 33. h4 {[%emt 0:02:51]} b5 {[%emt 0:01:02]} 34. Ke4 {[%emt 0:01:07]} a5 {[%emt 0:02:34]} 35. b3 {[%emt 0:01:03]} c4 {[%emt 0:03:44]} 36. bxc4 {[%emt 0:00:31]} b4 {[%emt 0:00:04]} 37. c5+ {[%emt 0:03:22]} Kxc5 {[%emt 0:00:54]} 38. Ke5 {[%emt 0:00:07]} a4 {[%emt 0:01:43]} 39. Kf6 {[%emt 0:01:53]} Kd6 {[%emt 0:01:17]} 40. Bc4 {[%emt 0:01:20]} Kc5 {[%emt 0:01:11] [#]} 41. Bf7 $1 {[%emt 0:02:39]} Kd6 $1 {[%emt 0:00:16]} 42. Bg8 {[%emt 0:00:38]} Nd7+ $2 {[%emt 0:02:14]} (42... b3 $11 {and Black has nothing to worry.} 43. axb3 Nd7+ 44. Kg7 a3 45. b4 $16) 43. Kg7 {[%emt 0:00:20]} Nc5 $18 {[%emt 0:00:49]} (43... b3) 44. Kxh7 {[%emt 0:04:01]} Ne6 {[%emt 0:11:27]} 45. Bxe6 {[%emt 0:09:28]} Kxe6 {[%emt 0:00:08]} 46. Kxg6 {[%emt 0:00:15]} b3 {[%emt 0:00:44]} 47. f5+ {[%emt 0:00:22]} Kd7 {[%emt 0:12:07]} 48. axb3 {[%emt 0:00:07]} axb3 {[%emt 0:00:05]} 49. f6 {[%emt 0:10:07]} b2 {[%emt 0:00:17]} 50. f7 {[%emt 0:00:19]} b1=Q+ {[%emt 0:00:08]} 51. Kg7 {[%emt 0:00:06]} Qb2+ {[%emt 0:00:19]} 52. Kg8 {[%emt 0:00:51]} Qb3 {[%emt 0:00:29]} 53. Kg7 {[%emt 0:01:25]} Qc3+ {[%emt 0:00:27]} 54. Kg8 {[%emt 0:00:17]} Qc4 {[%emt 0:00:22]} 55. Kg7 {[%emt 0:00:04]} Qd4+ {[%emt 0:03:28]} 56. Kg8 {[%emt 0:00:13]} Qd5 {[%emt 0:00:54]} 57. Kg7 {[%emt 0:01:55]} Qe5+ {[%emt 0:00:41]} 58. Kg8 {[%emt 0:00:25]} Qe6 {[%emt 0:01:16]} 59. Kg7 {[%emt 0:00:13]} Qe5+ {[%emt 0:01:44]} 60. Kg8 {[%emt 0:00:07]} Qe6 {[%emt 0:00:45]} 61. Kg7 {[%emt 0:00:28]} Qe5+ {[%emt 0:00:31]} 1/2-1/2